fUSD/lending_fUSD_20250305
["ID","MTS","AMOUNT","RATE_DAILY","PERIOD"]
[355429637,1741137156460,-646.02,0.00012198,2]
[355429638,1741137156483,-1842.37991,0.00012198,2]
[355429639,1741137156504,-604.12,0.00012198,2]
[355429640,1741137156527,-1866.67,0.00012198,2]
[355429641,1741137156550,-500.0,0.00012198,2]
[355429642,1741137156572,-2502.83,0.00012198,2]
[355429643,1741137156811,-2700.88,0.00012198,2]
[355429644,1741137156833,-2489.7,0.00012198,2]
[355429645,1741137156866,-500.0,0.00012198,2]
[355429646,1741137156894,-500.0,0.00012198,2]
[355429647,1741137156916,-3865.12,0.00012198,2]
[355429648,1741137156938,-1325.16,0.00012198,2]
[355429649,1741137156961,-500.0,0.00012198,2]
[355429650,1741137156983,-500.0,0.00012199,2]
[355429651,1741137157007,-510.23946327,0.00012199,2]
[355429652,1741137157028,-500.0,0.00012199,2]
[355429653,1741137157050,-500.0,0.00012199,2]
[355429654,1741137157073,-500.0,0.00012199,2]
[355429655,1741137157094,-500.0,0.00012199,2]
[355429656,1741137157115,-500.0,0.00012199,2]
[355429657,1741137157137,-500.0,0.00012199,2]
[355429658,1741137157160,-500.0,0.00012199,2]
[355429659,1741137157182,-500.0,0.00012199,2]
[355429660,1741137157203,-300.0,0.00012199,2]
[355429661,1741137157223,-500.0,0.00012199,2]
[355429662,1741137157244,-500.0,0.00012199,2]
[355429663,1741137157265,-500.0,0.00012199,2]
[355429664,1741137157286,-500.0,0.00012199,2]
[355429665,1741137157308,-500.0,0.00012199,2]
[355429666,1741137157329,-500.0,0.00012199,2]
[355429667,1741137157350,-500.0,0.00012199,2]
[355429668,1741137157372,-371.26599918,0.00012199,2]
[355429669,1741137157393,-500.0,0.00012199,2]
[355429670,1741137157413,-500.0,0.00012199,2]
[355429671,1741137157435,-500.0,0.00012199,2]
[355429672,1741137157460,-500.0,0.00012199,2]
[355429673,1741137157483,-503.49994788,0.00012199,2]
[355429674,1741137157507,-500.0,0.00012199,2]
[355429675,1741137157528,-298.85532971,0.00012199,2]
[355429676,1741137157550,-500.0,0.00012199,2]
[355429677,1741137157571,-500.0,0.00012199,2]
[355429678,1741137157592,-509.43936499,0.00012199,2]
[355429679,1741137157613,-500.0,0.00012199,2]
[355429680,1741137157634,-500.0,0.00012199,2]
[355429681,1741137157655,-500.0,0.00012199,2]
[355429682,1741137157676,-500.0,0.00012199,2]
[355429683,1741137157700,-500.0,0.00012199,2]
[355429684,1741137157724,-500.0,0.00012199,2]
[355429685,1741137157746,-500.0,0.00012199,2]
[355429686,1741137157767,-500.0,0.00012199,2]
[355429687,1741137157788,-500.0,0.00012199,2]
[355429688,1741137157809,-500.0,0.00012199,2]
[355429689,1741137157835,-511.03477176,0.00012199,2]
[355429690,1741137157856,-292.79685508,0.00012199,2]
[355429691,1741137157879,-500.0,0.00012199,2]
[355429692,1741137157900,-500.0,0.00012199,2]
[355429693,1741137157921,-500.0,0.00012199,2]
[355429694,1741137157942,-500.0,0.00012199,2]
[355429695,1741137157964,-500.0,0.00012199,2]
[355429696,1741137157986,-500.0,0.00012199,2]
[355429697,1741137158007,-500.0,0.00012199,2]
[355429698,1741137158030,-500.0,0.00012199,2]
[355429699,1741137158051,-500.0,0.00012199,2]
[355429700,1741137158073,-801.41,0.00012199,2]
[355429701,1741137158095,-500.0,0.00012199,2]
[355429702,1741137158116,-500.0,0.00012199,2]
[355429703,1741137158137,-500.0,0.00012199,2]
[355429704,1741137158159,-500.0,0.00012199,2]
[355429705,1741137158180,-500.0,0.00012199,2]
[355429706,1741137158201,-500.0,0.00012199,2]
[355429707,1741137158222,-500.0,0.00012199,2]
[355429708,1741137158244,-500.0,0.00012199,2]
[355429709,1741137158266,-1426.05,0.00012199,2]
[355429710,1741137158288,-1376.95,0.00012199,2]
[355429711,1741137158310,-500.0,0.00012199,2]
[355429712,1741137158332,-500.0,0.00012199,2]
[355429713,1741137158355,-500.0,0.00012199,2]
[355429714,1741137158376,-947.81,0.00012199,2]
[355429715,1741137158397,-500.0,0.00012199,2]
[355429716,1741137158418,-503.26231935,0.00012199,2]
[355429717,1741137158439,-500.0,0.00012199,2]
[355429718,1741137158463,-492.92853914,0.00012199,2]
[355429719,1741137158484,-500.0,0.00012199,2]
[355429720,1741137158506,-703.63,0.00012199,2]
[355429721,1741137158528,-500.0,0.00012199,2]
[355429722,1741137158548,-500.0,0.00012199,2]
[355429723,1741137158570,-739.98,0.00012199,2]
[355429724,1741137158592,-500.0,0.00012199,2]
[355429725,1741137158614,-525.84011875,0.00012199,2]
[355429726,1741137158636,-500.0,0.00012199,2]
[355429727,1741137158657,-500.0,0.00012199,2]
[355429728,1741137158678,-1595.29,0.00012199,2]
[355429729,1741137158699,-886.64,0.00012199,2]
[355429730,1741137158720,-500.0,0.00012199,2]
[355429731,1741137158741,-500.0,0.00012199,2]
[355429732,1741137158762,-930.75,0.00012199,2]
[355429733,1741137158784,-500.0,0.00012199,2]
[355429734,1741137158805,-500.0,0.00012199,2]
[355429735,1741137158826,-1048.65,0.00012199,2]
[355429736,1741137158848,-500.0,0.00012199,2]
[355429737,1741137158869,-500.0,0.00012199,2]
[355429738,1741137158890,-513.45474978,0.00012199,2]
[355429739,1741137158910,-500.0,0.00012199,2]
[355429740,1741137158931,-500.0,0.00012199,2]
[355429741,1741137158952,-511.53,0.00012199,2]
[355429742,1741137158974,-502.22472865,0.00012199,2]
[355429743,1741137158994,-504.0662109,0.00012199,2]
[355429744,1741137159017,-500.0,0.00012199,2]
[355429745,1741137159038,-500.0,0.00012199,2]
[355429746,1741137159060,-500.0,0.00012199,2]
[355429747,1741137159083,-500.0,0.00012199,2]
[355429748,1741137159104,-500.0,0.00012199,2]
[355429749,1741137159125,-500.0,0.00012199,2]
[355429750,1741137159146,-500.0,0.00012199,2]
[355429751,1741137159168,-500.0,0.00012199,2]
[355429752,1741137159190,-500.0,0.00012199,2]
[355429753,1741137159212,-532.62383818,0.00012199,2]
[355429754,1741137159233,-500.0,0.00012199,2]
[355429755,1741137159255,-507.64903132,0.00012199,2]
[355429756,1741137159279,-500.0,0.00012199,2]
[355429757,1741137159300,-500.0,0.00012199,2]
[355429758,1741137159321,-1299.51,0.00012199,2]
[355429759,1741137159343,-500.0,0.00012199,2]
[355429760,1741137159366,-500.0,0.00012199,2]
[355429761,1741137159387,-1338.01,0.00012199,2]
[355429762,1741137159408,-500.0,0.00012199,2]
[355429763,1741137159430,-785.95,0.00012199,2]
[355429764,1741137159455,-500.0,0.00012199,2]
[355429765,1741137159476,-500.0,0.00012199,2]
[355429766,1741137159499,-500.0,0.00012199,2]
[355429767,1741137159520,-816.45,0.00012199,2]
[355429768,1741137159542,-500.0,0.00012199,2]
[355429769,1741137159564,-500.0,0.00012199,2]
[355429770,1741137159585,-927.56,0.00012199,2]
[355429771,1741137159607,-500.0,0.00012199,2]
[355429772,1741137159627,-500.0,0.00012199,2]
[355429773,1741137159648,-500.0,0.00012199,2]
[355429774,1741137159670,-500.0,0.00012199,2]
[355429775,1741137159691,-500.0,0.00012199,2]
[355429776,1741137159712,-500.0,0.00012199,2]
[355429777,1741137159732,-503.56181624,0.00012199,2]
[355429778,1741137159753,-500.0,0.00012199,2]
[355429779,1741137159773,-500.0,0.00012199,2]
[355429780,1741137159795,-500.0,0.00012199,2]
[355429781,1741137159817,-500.0,0.00012199,2]
[355429782,1741137159839,-500.0,0.00012199,2]
[355429783,1741137159861,-500.0,0.00012199,2]
[355429784,1741137159883,-500.0,0.00012199,2]
[355429785,1741137159905,-500.0,0.00012199,2]
[355429786,1741137159926,-500.0,0.00012199,2]
[355429787,1741137159948,-500.0,0.00012199,2]
[355429788,1741137159969,-267.32445095,0.00012199,2]
[355429789,1741137159992,-500.0,0.00012199,2]
[355429790,1741137160015,-500.0,0.00012199,2]
[355429791,1741137160041,-915.92,0.00012199,2]
[355429792,1741137160069,-500.0,0.00012199,2]
[355429793,1741137160092,-500.0,0.00012199,2]
[355429794,1741137160114,-514.29,0.00012199,2]
[355429795,1741137160136,-500.0,0.00012199,2]
[355429796,1741137160158,-1052.69,0.00012199,2]
[355429797,1741137160179,-500.0,0.00012199,2]
[355429798,1741137160202,-921.42,0.00012199,2]
[355429799,1741137160223,-502.7025436,0.00012199,2]
[355429800,1741137160245,-500.0,0.00012199,2]
[355429801,1741137160267,-500.0,0.00012199,2]
[355429802,1741137160290,-885.82,0.00012199,2]
[355429803,1741137160310,-500.0,0.00012199,2]
[355429804,1741137160333,-500.0,0.00012199,2]
[355429805,1741137160355,-954.1,0.00012199,2]
[355429806,1741137160376,-500.0,0.00012199,2]
[355429807,1741137160398,-500.0,0.00012199,2]
[355429808,1741137160419,-272.58804975,0.00012199,2]
[355429809,1741137160441,-500.0,0.00012199,2]
[355429810,1741137160467,-500.0,0.00012199,2]
[355429811,1741137160488,-500.0,0.00012199,2]
[355429812,1741137160510,-500.0,0.00012199,2]
[355429813,1741137160532,-500.0,0.00012199,2]
[355429814,1741137160555,-500.0,0.00012199,2]
[355429815,1741137160575,-500.0,0.00012199,2]
[355429816,1741137160597,-500.0,0.00012199,2]
[355429817,1741137160618,-500.0,0.00012199,2]
[355429818,1741137160639,-500.0,0.00012199,2]
[355429819,1741137160660,-500.0,0.00012199,2]
[355429820,1741137160681,-500.0,0.00012199,2]
[355429821,1741137160702,-530.43815914,0.00012199,2]
[355429822,1741137160723,-207.51658007,0.00012199,2]
[355429823,1741137160956,-500.0,0.00012199,2]
[355429824,1741137160980,-500.0,0.00012199,2]
[355429825,1741137161002,-1308.43,0.00012199,2]
[355429826,1741137161024,-500.0,0.00012199,2]
[355429827,1741137161046,-555.00422397,0.00012199,2]
[355429828,1741137161067,-566.74759384,0.00012199,2]
[355429829,1741137161088,-500.0,0.00012199,2]
[355429830,1741137161109,-450.08381979,0.00012199,2]
[355429831,1741137161131,-508.4228298,0.00012199,2]
[355429832,1741137161152,-1281.46,0.00012199,2]
[355429833,1741137161173,-1234.71,0.00012199,2]
[355429834,1741137161194,-500.0,0.00012199,2]
[355429835,1741137161215,-2196.34,0.00012199,2]
[355429836,1741137161236,-503.94576837,0.00012199,2]
[355429837,1741137161258,-500.0,0.00012199,2]
[355429838,1741137161279,-500.0,0.00012199,2]
[355429839,1741137161300,-500.0,0.00012199,2]
[355429840,1741137161321,-500.0,0.00012199,2]
[355429841,1741137161343,-472.45337623,0.00012199,2]
[355429842,1741137305754,500.0,0.000221,90]
[355429843,1741137332237,500.0,0.000221,90]
[355429844,1741137353008,500.0,0.000221,90]
[355429845,1741137414223,500.0,0.000221,90]
[355429846,1741137450926,500.0,0.000221,90]
[355429847,1741137455366,500.0,0.000221,90]
[355429848,1741137480683,500.0,0.000221,90]
[355429849,1741137485075,500.0,0.000221,90]
[355429850,1741137664356,1017.71,0.00022,90]
[355429878,1741138232155,-401.08444978,0.00010991,2]
[355429879,1741138232166,-401.08444978,0.00011035,2]
[355429880,1741138232179,-213.54983757,0.00011068,2]
[355429881,1741138232191,-187.53461221,0.00011068,2]
[355429882,1741138232200,-458.87,0.0001107,2]
[355429883,1741138232210,-154.65,0.00011133,2]
[355429884,1741138232219,-150.0,0.00011153,2]
[355429885,1741138232229,-155.71,0.00011214,2]
[355429886,1741138232239,-437.49853276,0.00011394,2]
[355429887,1741138232433,-1917.29626969,0.00011394,2]
[355429889,1741138232445,-139.49519755,0.00011394,2]
[355429890,1741138232454,-157.9256,0.00011897,2]
[355429892,1741138232463,-304.12780169,0.00011897,2]
[355429894,1741138238057,-221.61355541,0.00011897,2]
[355429895,1741138238067,-3973.99516102,0.000119,2]
[355429896,1741138238076,-300.0,0.00011951,2]
[355429897,1741138238085,-1310.35128357,0.00011952,2]
[355429898,1741138238097,-2663.64387742,0.00011952,2]
[355429899,1741138238106,-2381.78408913,0.00011994,2]
[355429900,1741138238115,-150.0,0.00011996,2]
[355429901,1741138238125,-500.0,0.00011997,2]
[355429902,1741138238134,-3073.54724472,0.00011997,2]
[355429903,1741138238145,-941.57868834,0.00011997,2]
[355429904,1741138238156,-592.14361496,0.00011997,2]
[355429905,1741138238167,-295.46928362,0.00011997,2]
[355429906,1741138238296,-36154.5919012,0.00011997,2]
[355429907,1741138238307,-30492.20538036,0.00011997,2]
[355429908,1741138238319,-21790.30693127,0.00011997,2]
[355429909,1741138238331,-1848.60831928,0.00011997,2]
[355429910,1741138238342,-5643.71507806,0.00011997,2]
[355429914,1741138240324,-4298.4806368,0.00011997,2]
[355429915,1741138240335,-2190.88403759,0.00011997,2]
[355429916,1741138240347,-453.57718993,0.00011997,2]
[355429917,1741138240358,-2482.0,0.00011997,2]
[355429939,1741138243315,-500.0,0.00011897,2]
[355429940,1741138243325,-3984.45086405,0.00011997,2]
[355429966,1741138246146,-5938.57677799,0.00011997,2]
[355429967,1741138246157,-552.84152898,0.00011997,2]
[355430014,1741138251521,-5025.18797472,0.00011997,2]
[355430015,1741138251567,-16074.58931408,0.00011997,2]
[355430016,1741138251579,-3449.0,0.00011997,2]
[355430017,1741138251591,-5040.6632875,0.00011997,2]
[355430018,1741138251719,-1729.24609705,0.00011997,2]
[355430019,1741138251737,-710.81898075,0.00011997,2]
[355430020,1741138251749,-2105.50608183,0.00011997,2]
[355430021,1741138251761,-880.52319839,0.00011997,2]
[355430022,1741138251772,-440.2255406,0.00011997,2]
[355430023,1741138251894,313.28,9.208e-05,2]
[355430024,1741138985041,300.0,0.00022,120]
[355430025,1741139010006,312.0,0.00022,120]
[355430026,1741139275921,280.0,0.00011,10]
[355430027,1741139418361,5008.0,0.00022082,90]
[355430059,1741139432363,-157.34,0.00010994,2]
[355430060,1741139432373,-550.0,0.00011,2]
[355430061,1741139432382,-200.0,0.0001102,2]
[355430062,1741139432392,-550.0,0.00011031,2]
[355430063,1741139432401,-150.0,0.00011031,2]
[355430064,1741139432411,-173.17,0.0001104,2]
[355430065,1741139432420,-1000.0,0.00011124,2]
[355430066,1741139432430,-173.17,0.0001126,2]
[355430067,1741139432439,-313.28,0.00011472,2]
[355430068,1741139432449,-173.17,0.00011481,2]
[355430069,1741139432458,-1061.0,0.00011587,2]
[355430070,1741139432468,-173.17,0.00011702,2]
[355430071,1741139432477,-422.7228385,0.0001176,2]
[355430072,1741139432487,-150.0,0.00011863,2]
[355430073,1741139432496,-1541.72226,0.0001188,2]
[355430074,1741139432506,-503.02,0.000119,2]
[355430075,1741139432515,-5108.0,0.000119,2]
[355430076,1741139432525,-173.17,0.00011923,2]
[355430077,1741139432535,-3736.19970892,0.00011984,2]
[355430078,1741139432545,-2175.83700726,0.00011984,2]
[355430079,1741139432555,-510.5485,0.00011984,2]
[355430080,1741139432564,-2186.8306,0.00011985,2]
[355430081,1741139432575,-2754.0717,0.00011985,2]
[355430082,1741139432585,-150.0,0.00011985,2]
[355430083,1741139432595,-563.4557,0.00011986,2]
[355430084,1741139432604,-259.7299,0.00011986,2]
[355430085,1741139432614,-26827.33578891,0.00011986,2]
[355430103,1741139433094,-3009.43061109,0.00011986,2]
[355430104,1741139433104,-139.54933891,0.00011987,2]
[355430105,1741139433116,-73.61156109,0.00011987,2]
[355430106,1741139433126,-272.0857,0.00011987,2]
[355430107,1741139433136,-812.89616651,0.0001199,2]
[355430108,1741139433148,-638.65289464,0.0001199,2]
[355430109,1741139433210,-648.45093885,0.0001199,2]
[355430110,1741139433221,-154.68055115,0.00011992,2]
[355430111,1741139433231,-196.86851,0.00011993,2]
[355430114,1741139438185,-580.29029,0.00011993,2]
[355430115,1741139438196,-1191.85794394,0.00011994,2]
[355430116,1741139438206,-1504.75303418,0.00012,2]
[355430117,1741139438267,-345.24696582,0.00012,2]
[355430118,1741139438276,-267.35303423,0.00012027,2]
[355430119,1741139438288,-3468.84667466,0.00012027,2]
[355430120,1741139438299,-350.77799485,0.00012027,2]
[355430121,1741139438344,-1825.05901237,0.00012027,2]
[355430122,1741139438354,-3736.19970889,0.0001207,2]
[355430123,1741139438363,-1962.91915194,0.0001207,2]
[355430124,1741139438421,-212.91785528,0.0001207,2]
[355430125,1741139438430,-41772.24856641,0.00012083,2]
[355430126,1741139438442,-5602.70304,0.00012083,2]
[355430127,1741139438453,-1426.51243399,0.00012083,2]
[355430128,1741139438465,-1290.0,0.00012083,2]
[355430129,1741139438477,-1011.85,0.00012083,2]
[355430130,1741139438500,-900.48983006,0.00012083,2]
[355430131,1741139438513,-2216.26776514,0.00012083,2]
[355430296,1741139440229,-252.12435034,0.00012083,2]
[355430299,1741139440241,-1755.0711504,0.00012083,2]
[355430309,1741139440311,-302.148,0.00012083,2]
[355430319,1741139440393,-1754.79876025,0.00012083,2]
[355430336,1741139440541,-11686.55796566,0.00012083,2]
[355430338,1741139440551,-500.0,0.00012083,2]
[355430340,1741139440560,-500.0,0.00012083,2]
[355430342,1741139440569,-500.0,0.00012083,2]
[355430344,1741139440578,-500.0,0.00012083,2]
[355430346,1741139440587,-375.15746634,0.00012083,2]
[355430624,1741139443297,-788.68253366,0.00012083,2]
[355430626,1741139443307,-500.0,0.00012083,2]
[355430628,1741139443316,-500.0,0.00012083,2]
[355430630,1741139443325,-500.0,0.00012083,2]
[355430632,1741139443334,-489.78831694,0.00012083,2]
[355430634,1741139443346,-228.56168306,0.00012083,2]
[355430636,1741139443355,-500.0,0.00012083,2]
[355430638,1741139443365,-500.0,0.00012083,2]
[355430640,1741139443374,-500.0,0.00012083,2]
[355430642,1741139443383,-500.0,0.00012083,2]
[355430643,1741139443393,-500.0,0.00012083,2]
[355430645,1741139443402,-500.0,0.00012083,2]
[355430647,1741139443411,-500.0,0.00012083,2]
[355430649,1741139443420,-500.0,0.00012083,2]
[355430651,1741139443429,-668.62927014,0.00012083,2]
[355430653,1741139443440,-346.25072986,0.00012083,2]
[355430655,1741139443450,-500.0,0.00012083,2]
[355430657,1741139443459,-836.7,0.00012083,2]
[355430659,1741139443468,-1246.95,0.00012083,2]
[355430661,1741139443477,-500.0,0.00012083,2]
[355430663,1741139443487,-500.0,0.00012083,2]
[355430665,1741139443497,-500.0,0.00012083,2]
[355430666,1741139443508,-330.57182003,0.00012083,2]
[355430668,1741139443517,-500.0,0.00012083,2]
[355430670,1741139443526,-500.0,0.00012083,2]
[355430672,1741139443536,-500.0,0.00012083,2]
[355430674,1741139443545,-500.0,0.00012083,2]
[355430676,1741139443554,-504.86052395,0.00012083,2]
[355430678,1741139443564,-501.2411897,0.00012083,2]
[355430680,1741139443573,-500.0,0.00012083,2]
[355430681,1741139443582,-500.0,0.00012083,2]
[355430683,1741139443591,-500.0,0.00012083,2]
[355430685,1741139443601,-22.6852733,0.00012083,2]
[355430773,1741139444526,-306.56339658,0.00012083,2]
[355430852,1741139446415,-170.75133012,0.00012083,2]
[355430853,1741139446425,-1031.97782022,0.00012083,2]
[355430861,1741139446493,-174.71217978,0.00012083,2]
[355430863,1741139446503,-500.0,0.00012083,2]
[355430865,1741139446514,-500.0,0.00012083,2]
[355430867,1741139446525,-500.86690783,0.00012083,2]
[355430868,1741139446536,-505.11965846,0.00012083,2]
[355430870,1741139446547,-505.46251997,0.00012083,2]
[355430872,1741139446556,-500.0,0.00012083,2]
[355430873,1741139446566,-500.0,0.00012083,2]
[355430874,1741139446575,-537.14243978,0.00012083,2]
[355430875,1741139446585,-500.0,0.00012083,2]
[355430876,1741139446595,-500.0,0.00012083,2]
[355430877,1741139446604,-500.0,0.00012083,2]
[355430878,1741139446614,-500.0,0.00012083,2]
[355430879,1741139446623,-500.0,0.00012083,2]
[355430880,1741139446633,-500.0,0.00012083,2]
[355430881,1741139446642,-511.75845209,0.00012083,2]
[355430882,1741139446651,-500.0,0.00012083,2]
[355430883,1741139446661,-500.0,0.00012083,2]
[355430884,1741139446670,-500.0,0.00012083,2]
[355430885,1741139446682,-500.0,0.00012083,2]
[355430886,1741139446692,-500.0,0.00012083,2]
[355430887,1741139446703,-500.0,0.00012083,2]
[355430888,1741139446712,-944.46,0.00012083,2]
[355430889,1741139446721,-787.45,0.00012083,2]
[355430890,1741139446731,-2865.0,0.00012083,2]
[355430891,1741139446741,-3643.88,0.00012083,2]
[355430892,1741139446750,-500.0,0.00012083,2]
[355430893,1741139446760,-500.0,0.00012083,2]
[355430894,1741139446769,-886.05,0.00012083,2]
[355430895,1741139446778,-2178.39,0.00012083,2]
[355430896,1741139446788,-500.0,0.00012083,2]
[355430897,1741139446798,-6834.52,0.00012083,2]
[355430898,1741139446806,-579.07061885,0.00012083,2]
[355430899,1741139446816,-423.03015167,0.00012083,2]
[355430900,1741139446827,-76.96984833,0.00012083,2]
[355430901,1741139446837,-5046.71,0.00012083,2]
[355430902,1741139446846,-500.0,0.00012083,2]
[355430903,1741139446856,-103.38736667,0.00012083,2]
[355430904,1741139446872,-396.61263333,0.00012083,2]
[355430905,1741139446881,-1076.04,0.00012083,2]
[355430906,1741139446890,-129.53159677,0.00012083,2]
[355430910,1741139446954,-217.27093593,0.00012083,2]
[355430912,1741139446963,-500.0,0.00012083,2]
[355430914,1741139446973,-512.3867238,0.00012083,2]
[355430916,1741139446982,-500.0,0.00012083,2]
[355430918,1741139446992,-4865.69,0.00012083,2]
[355430920,1741139447002,-265.42679967,0.00012083,2]
[355431028,1741139593160,442.97,9.224e-05,2]
[355431031,1741140610953,420.82,9.149e-05,2]
[355431032,1741140626944,819.91992033,0.000221,90]
[355431038,1741140631710,-550.0,0.00011,2]
[355431039,1741140631720,-176.51,0.0001106,2]
[355431040,1741140631730,-1000.0,0.00011089,2]
[355431041,1741140631740,-150.0,0.00011131,2]
[355431042,1741140631750,-155.71,0.00011174,2]
[355431043,1741140631759,-176.51,0.00011355,2]
[355431044,1741140631769,-138.76535776,0.00011413,2]
[355431045,1741140631781,-282.05464224,0.00011413,2]
[355431046,1741140631791,-166.66,0.00011483,2]
[355431047,1741140631801,-176.51,0.0001165,2]
[355431048,1741140631810,-377.3541,0.00011884,2]
[355431049,1741140631820,-417.34233369,0.00011898,2]
[355431050,1741140631830,-176.51,0.00011945,2]
[355431051,1741140631840,-4464.33115676,0.0001198,2]
[355431052,1741140631850,-473.23299863,0.00011981,2]
[355431083,1741140637429,-2197.89965421,0.00011981,2]
[355431084,1741140637439,-150.0,0.00011982,2]
[355431085,1741140637449,-2622.1588937,0.00011983,2]
[355431086,1741140637483,-1848.58418204,0.00011983,2]
[355431087,1741140637527,-513.22687617,0.00011983,2]
[355431088,1741140637538,-1141.543,0.00011983,2]
[355431089,1741140637611,-8402.87019244,0.00011983,2]
[355431090,1741140637625,-1124.4016035,0.00011983,2]
[355431091,1741140637636,-940.797,0.00011983,2]
[355431093,1741140639552,-212.13836049,0.00011983,2]
[355431094,1741140639562,-116.4816365,0.00011983,2]
[355431095,1741140639573,-500.0,0.00011983,2]
[355431096,1741140639961,-798.52623198,0.00011983,2]
[355431097,1741140639972,-900.0,0.00011983,2]
[355431098,1741140639984,-1030.82396,0.00011983,2]
[355431099,1741140639996,-3537.08530993,0.00011983,2]
[355431100,1741140640007,-2195.30000002,0.00011983,2]
[355431101,1741140640035,-28000.0,0.00011983,2]
[355431102,1741140640053,-2011.46481372,0.00011983,2]
[355431103,1741140640062,-953.48635516,0.00011984,2]
[355431104,1741140640072,-1000.0,0.00011984,2]
[355431105,1741140640081,-13625.04883113,0.00011984,2]
[355431106,1741140640103,-4000.0,0.00011984,2]
[355431107,1741140640114,-254.98887991,0.00011984,2]
[355431122,1741140642700,-22955.56485089,0.00011984,2]
[355431123,1741140642712,-7643.34046316,0.00011984,2]
[355431124,1741140642723,-3163.5,0.00011984,2]
[355431126,1741140645663,-2369.63605958,0.00011984,2]
[355431127,1741140645789,-6043.3287,0.00011984,2]
[355431130,1741141539866,230450.0,0.000221,90]
[355431131,1741141610753,0.95566466,0.00020011,120]
[355431132,1741141610777,143369.04433534,0.00020011,120]
[355431135,1741141736368,378.73,9.189e-05,2]
[355431184,1741141834913,-423.27363649,0.00011031,2]
[355431185,1741141835006,-686.38615094,0.00011031,2]
[355431186,1741141835092,-145.53477098,0.00011031,2]
[355431187,1741141835101,-242.75404719,0.00011059,2]
[355431188,1741141835111,-1255.19455841,0.00011067,2]
[355431189,1741141835120,-242.75404719,0.00011082,2]
[355431190,1741141835129,-242.75404719,0.00011089,2]
[355431191,1741141835139,-1255.19455841,0.00011094,2]
[355431192,1741141835148,-200.0,0.00011099,2]
[355431193,1741141835158,-151.29,0.00011099,2]
[355431194,1741141835169,-155.71,0.00011102,2]
[355431195,1741141835178,-1000.0,0.00011109,2]
[355431196,1741141835188,-378.73,0.00011453,2]
[355431197,1741141835197,-288.39113873,0.00011594,2]
[355431198,1741141835209,-137.02195219,0.00011594,2]
[355431199,1741141835218,-756.03459763,0.0001186,2]
[355431200,1741141835259,-597.87713237,0.0001186,2]
[355431201,1741141835268,-4060.05267686,0.00011978,2]
[355431202,1741141835277,-575.77609243,0.00011978,2]
[355431203,1741141835288,-328.01300429,0.00011978,2]
[355431228,1741141837647,-1500.23029089,0.00011978,2]
[355431229,1741141837658,-300.0,0.00011979,2]
[355431230,1741141837667,-150.0,0.00011979,2]
[355431231,1741141837677,-181.4704,0.0001198,2]
[355431232,1741141837686,-276.9524,0.0001198,2]
[355431233,1741141837696,-12806.71735882,0.0001198,2]
[355431234,1741141837707,-2203.84329464,0.0001198,2]
[355431235,1741141837791,-268.78816965,0.0001198,2]
[355431236,1741141837811,-3148.41787689,0.0001198,2]
[355431237,1741141837821,-762.78908412,0.00011981,2]
[355431238,1741141837830,-5000.0,0.00012,2]
[355431239,1741141837840,-4060.05267677,0.00012022,2]
[355431240,1741141837850,-2404.01938753,0.00012022,2]
[355431241,1741141837860,-4060.05267677,0.00012065,2]
[355431245,1741141838134,-2404.01938753,0.00012065,2]
[355431246,1741141838144,-200.39265608,0.00012071,2]